{"text_format":"1","workbook":"xlsx","n_sheets":2,"sheets":["Виды работ","Смета"],"not_rendered":{"charts":0,"images":1,"macros":1,"external_links":1,"defined_names":0,"comments":0,"pivot_tables":0},"unopened":[],"bounds":{"document_bytes":16777216,"sheet_cells":100000,"rows_first":2000,"rows_last":500,"rows_between":2000,"halvings":0,"cell_chars":16384,"cell_head_chars":4096},"cells_cut":0,"cells_raw":0,"read":"whole","date_system":"1900"}

{"sheet":"Виды работ","index":0,"n_rows":180,"n_cols":5,"rows_kept":180,"cut":false,"hidden":false,"merged":[]}
[]
[]
[]
[null,null,null,"Кол-во","КОЛИЧЕСТВО"]
[null,"Виды работ \"Стены\""]
[{"$f":"IF(E6,COUNT($E$6:E6),\"\")","v":1},"Грунтовка ",null,"кв.м.",6]
[{"$f":"IF(E7,COUNT($E$6:E7),\"\")","v":""},"Демонтаж оконного блока",null,"комп"]
[{"$f":"IF(E8,COUNT($E$6:E8),\"\")","v":""},"Демонтаж стен 4",null,"кв.м."]
[{"$f":"IF(E9,COUNT($E$6:E9),\"\")","v":2},"Демонтаж штукатурки",null,"кв.м.",6]
[{"$f":"IF(E10,COUNT($E$6:E10),\"\")","v":""},"Монтаж закладных ",null,"шт"]
[{"$f":"IF(E11,COUNT($E$6:E11),\"\")","v":3},"Монтаж из  ГКЛВ коробов",null,"м.п ",5676]
[{"$f":"IF(E12,COUNT($E$6:E12),\"\")","v":""},"Монтаж из двойного ГКЛ перегородок",null,"кв.м"]
[{"$f":"IF(E13,COUNT($E$6:E13),\"\")","v":""},"Окраска стен ",null,"кв.м."]
[{"$f":"IF(E14,COUNT($E$6:E14),\"\")","v":""},"Подготовка стен под окраска с проклейкой стеклообоев ",null,"кв.м."]
[{"$f":"IF(E15,COUNT($E$6:E15),\"\")","v":""},"Подготовка стен под поклейку обоев",null,"кв.м."]
[{"$f":"IF(E16,COUNT($E$6:E16),\"\")","v":""},"Поклейка фотообоев",null,"кв.м."]
[{"$f":"IF(E17,COUNT($E$6:E17),\"\")","v":""},"Установка люк-ревизия под плитку ",null,"шт"]
[{"$f":"IF(E18,COUNT($E$6:E18),\"\")","v":""},"Штукатурка по маякам",null,"кв.м."]
[{"$f":"IF(E19,COUNT($E$6:E19),\"\")","v":""}]
[{"$f":"IF(E20,COUNT($E$6:E20),\"\")","v":""}]
[{"$f":"IF(E21,COUNT($E$6:E21),\"\")","v":""}]
[{"$f":"IF(E22,COUNT($E$6:E22),\"\")","v":""}]
[{"$f":"IF(E23,COUNT($E$6:E23),\"\")","v":""}]
[{"$f":"IF(E24,COUNT($E$6:E24),\"\")","v":""}]
[{"$f":"IF(E25,COUNT($E$6:E25),\"\")","v":""}]
[null,"Потолки"]
[null,"Устройство  ГКЛ потолка двухуровн. с шумоизоляцией",null,"кв.м."]
[null,"Устройство  ГКЛ коробов  с шумоизоляцией",null,"мп"]
[null,"Монтаж закладных ",null,"шт"]
[null,"Проклейка швов стыковочной лентой ",null,"мп"]
[null,"Грунтовка ",null,"кв.м."]
[null,"Шпатлевание",null,"кв.м."]
[null,"Шлифовка",null,"кв.м."]
[null,"Грунтовка ",null,"кв.м."]
[null,"Окл+A38ейка обоями паутинка ",null,"кв.м."]
[null,"Шпатлевание финишное ",null,"кв.м."]
[null,"Монтаж галтелей",null,"пог.м."]
[null,"Окраска  галтелей",null,"пог.м."]
[null,"Нанесение декоративной штукатурки ",null,"кв.м."]
[null,"Окраска на 2 раза",null,"кв.м."]
[]
[]
[null,"                                          Полы"]
[null,"Демонтаж стяжки ",null,"кв.м"]
[null,"Монтаж звукоизоляции Шуманет 100 ",null,"кв.м"]
[null,"Монтаж подиумов ",null,"комп "]
[null,"Стяжка",null,"кв.м"]
[null,"Грунтовка ",null,"кв.м"]
[null,"Заливка ровнителем ",null,"кв.м"]
[null,"Настил ламината ",null,"кв.м"]
[null,"Расчистка пола, грунтовка ",null,"кв.м"]
[null,"Гидроизоляция на 2 раза с проклейкой углов стен",null,"кв.м"]
[null,"Монтаж плинтуса ",null,"пог.м"]
[]
[]
[null,"                       Облицовочные работы"]
[null,"Укладка плитки стены",null,"кв.м."]
[null,"Формирование углов под 90 градусов",null,"пог.м"]
[null,"Облицовка барной стойки ",null,"комп "]
[null,"Укладка плитки полы",null,"кв.м."]
[]
[]
[null,"                       Плотницкие  работы"]
[null,"Монтаж дверей с фурнитурой",null,"шт"]
[null,"Монтаж кассеты ",null,"шт"]
[null,"Монтаж молдингов",null,"шт"]
[null,"Монтаж фурнитуры ",null,"шт"]
[null,"Монтаж карнизов ",null,"шт"]
[null,"Монтаж отбойников",null,"шт"]
[]
[]
[]
[null,"                                    Сантехнические работы  "]
[null,"Отключение водоснабжения ",null,"комп"]
[null,"Перемонтаж коллектора входного",null,"комп"]
[null,"Демонтаж батарей",null,"шт"]
[null,"монтаж временной схемы водопровода ",null,"комп"]
[null,"монтаж трассы водопровода в попу между санузлами ",null,"м.п "]
[null,"монтаж полотенцесушила",null,"шт"]
[null,"монтаж конвекторов ",null,"комп"]
[null,"перемотаж трубы отопления ",null,"комп"]
[null,"монтаж  ГВС И ХВС",null,"комп"]
[null,"монтаж  коллекторов ",null,"комп"]
[null," монтаж  фановой трубы",null,"комп"]
[null," монтаж  трапов ",null,"комп"]
[null,"врезка в стояк фановой трубы",null,"комп"]
[null,"Монтаж батареи",null,"шт"]
[null,"Монтаж ванны",null,"шт"]
[null,"Монтаж унитаза с инсталляцией",null,"шт"]
[null,"Монтаж душевого смесителя",null,"шт"]
[null,"Монтаж раковины со смесителем ",null,"шт"]
[null,"Монтаж стиральной машины",null,"шт"]
[]
[]
[null,"                                                      Материалы"]
[null,"труба полипропиленовая,фановая ",null,"комп"]
[null,"труба металлопластик 25",null,"комп"]
[null,"конвектора ",null,"комп"]
[null,"комплектующие к конвекторам ",null,"комп"]
[null,"трап ",null,"комп"]
[null,"Фильтра тонкой отчистки + картридж ",null,"комп"]
[null,"Фильтра грубой отчистки ",null,"комп"]
[null,"Счетчики  ",null,"комп"]
[null,"Расходные материалы ",null,"комп"]
[null,"Фитинги ,краны.коллектор ",null,"комп"]
[]
[null,"                      Работы по балкону "]
[null,"Демонтаж плит",null,"шт"]
[null,"Утепление мин ватой ",null,"шт"]
[null,"Герметизация швов",null,"шт"]
[null,"Монтаж плит",null,"шт"]
[null,"Монтаж гипрока в один слой",null,"шт"]
[null,"Монтаж коробов ",null,"шт"]
[null,"Окраска кирпича ",null,"м"]
[null,"Монтаж карнизов ",null,"шт"]
[]
[null,"                                                      Материалы"]
[null,"Минвата ",null,"шт"]
[null,"Пароизоляция ",null,"шт"]
[null,"ГКЛ и комплектующие ",null,"комп"]
[null,"Метизы ",null,"комп"]
[null,"Расходные материалы"]
[]
[]
[]
[null,"                             Откосы (малярные работы)"]
[null,"Штукатурка ",null,"пог.м."]
[null,"Шпатлевание",null,"пог.м."]
[null,"шлифовка",null,"пог.м."]
[null,"грунтовка",null,"пог.м."]
[null,"Оклейка обоями",null,"пог.м."]
[null,"Монтаж галтелей из гипса ",null,"пог.м."]
[null,"Окраска  галтелей",null,"пог.м."]
[null,"окраска откосов ",null,"пог.м."]
[null,"Герметизация швов акрилом",null,"пог.м."]
[]
[null,"                                                      Материалы"]
[null,"Грунтовка \"Церизит ст 17\"",null,"шт"]
[null,"Штукатурка Ротбант",null,"шт"]
[null,"Профиль Маячок \"Стронг\" 10мм, 3м",null,"шт"]
[null,"Флизилин ",null,"рулон"]
[null,"Гипс ",null,"м"]
[null,"Клей для галтелей",null,"шт"]
[null,"Профиль углозащ.(алюминиевый),3м",null,"шт"]
[null,"Ветонит VH (шпатлевка 25 кг)",null,"шт"]
[null,"Краска в/д ",null,"шт"]
[null,"Расходные материалы",null,"комп"]
[]
[null,"                 Электромонтажные работы"]
[null,"Подключение временной схемы",null,"комп"]
[null,"Прокладка кабеля ",null,"пог.м."]
[null,"Монтаж воздуховодов ",null,"пог.м."]
[null,"Монтаж и подключение вентиляторов ",null,"пог.м."]
[null,"Прокладка кабеля  слаботочного",null,"пог.м."]
[null,"Установка розеток и выключателей,с коробкой",null,"шт"]
[null,"Монтаж и подключение теплого пола",null,"кв.м."]
[null,"Подключение приборов",null,"шт"]
[null,"Монтаж и наладка видеопроектора  ",null,"шт"]
[null,"Монтаж экрана ",null,"шт"]
[null,"Монтаж и подключение люстр",null,"шт"]
[null,"Монтаж и подключение бра",null,"шт"]
[null,"Монтаж и подключение точечных светильников",null,"шт"]
[null,"Монтаж ленты светодиодной ",null,"пог.м."]
[null,"Штробление и проходы в стене",null,"пог.м."]
[null,"Установка распаечных коробок",null,"шт"]
[null,"Монтаж и расключение щита слаботочного",null,"шт"]
[null,"Монтаж и расключение щита",null,"комп"]
[]
[null,"                                                      Материалы "]
[null,"Кабель NYM \"Севкабель\" 3х1,5",null,"пог.м."]
[null,"Кабель NYM \"Севкабель\" 3х2,5",null,"пог.м."]
[null,"Кабель слаботочный ",null,"пог.м."]
[null,"Светодиодная лента и комплектующие ",null,"пог.м."]
[null,"Теплый пол",null,"комп"]
[null,"Датчики ",null,"комп"]
[null,"Вентиляторы и гофра ",null,"комп"]
[null,"Гофра",null,"шт"]
[null,"Расходные материалы(метизы,скобы,клеммы)",null,"комп"]
[null,"Щит",null,"шт"]
[null,"Автоматы",null,"комп"]

{"sheet":"Смета","index":1,"n_rows":231,"n_cols":7,"rows_kept":231,"cut":false,"hidden":false,"merged":[]}
[null,"Смета  на ремонтно-отделочные и иные работы."]
[null,"Объект:     "]
[]
["1","Демонтаж стен 4","Кол-во","Ед.изм","Цена","Сумма","Комментарии"]
[null,null,null,null,null,{"$f":"IFERROR(C5*E5,\"\")","v":0}]
[{"$f":"IFERROR(VLOOKUP(ROW(A1),'Виды работ'!$A$5:$E$25,COLUMN(),0),\"\")","v":1},{"$f":"IFERROR(VLOOKUP(ROW(B1),'Виды работ'!$A$5:$E$25,COLUMN(),0),\"\")","v":"Грунтовка "},{"$f":"IFERROR(VLOOKUP(ROW(C1),'Виды работ'!$A$5:$E$25,COLUMN(E1),0),\"\")","v":6},{"$f":"IFERROR(VLOOKUP($B6,'Виды работ'!$B$6:$G$20,COLUMN(C1),0),\"\")","v":"кв.м."},{"$f":"IFERROR(VLOOKUP($B6,'Виды работ'!$B$6:$G$20,COLUMN(D1),0),\"\")","v":6},36]
[{"$f":"IFERROR(VLOOKUP(ROW(A2),'Виды работ'!$A$5:$E$25,COLUMN(),0),\"\")","v":2},{"$f":"IFERROR(VLOOKUP(ROW(B2),'Виды работ'!$A$5:$E$25,COLUMN(),0),\"\")","v":"Демонтаж штукатурки"},{"$f":"IFERROR(VLOOKUP(ROW(C2),'Виды работ'!$A$5:$E$25,COLUMN(E2),0),\"\")","v":6},{"$f":"IFERROR(VLOOKUP($B7,'Виды работ'!$B$6:$G$20,COLUMN(C2),0),\"\")","v":"кв.м."},{"$f":"IFERROR(VLOOKUP($B7,'Виды работ'!$B$6:$G$20,COLUMN(D2),0),\"\")","v":6},36]
[{"$f":"IFERROR(VLOOKUP(ROW(A3),'Виды работ'!$A$5:$E$25,COLUMN(),0),\"\")","v":3},{"$f":"IFERROR(VLOOKUP(ROW(B3),'Виды работ'!$A$5:$E$25,COLUMN(),0),\"\")","v":"Монтаж из  ГКЛВ коробов"},{"$f":"IFERROR(VLOOKUP(ROW(C3),'Виды работ'!$A$5:$E$25,COLUMN(E3),0),\"\")","v":5676},{"$f":"IFERROR(VLOOKUP($B8,'Виды работ'!$B$6:$G$20,COLUMN(C3),0),\"\")","v":"м.п "},{"$f":"IFERROR(VLOOKUP($B8,'Виды работ'!$B$6:$G$20,COLUMN(D3),0),\"\")","v":5676},32216976]
[{"$f":"IFERROR(VLOOKUP(ROW(A4),'Виды работ'!$A$5:$E$25,COLUMN(),0),\"\")","v":""},{"$f":"IFERROR(VLOOKUP(ROW(B4),'Виды работ'!$A$5:$E$25,COLUMN(),0),\"\")","v":""},{"$f":"IFERROR(VLOOKUP(ROW(C4),'Виды работ'!$A$5:$E$25,COLUMN(E4),0),\"\")","v":""},{"$f":"IFERROR(VLOOKUP($B9,'Виды работ'!$B$6:$G$20,COLUMN(C4),0),\"\")","v":""},{"$f":"IFERROR(VLOOKUP($B9,'Виды работ'!$B$6:$G$20,COLUMN(D4),0),\"\")","v":""},""]
[{"$f":"IFERROR(VLOOKUP(ROW(A5),'Виды работ'!$A$5:$E$25,COLUMN(),0),\"\")","v":""},{"$f":"IFERROR(VLOOKUP(ROW(B5),'Виды работ'!$A$5:$E$25,COLUMN(),0),\"\")","v":""},{"$f":"IFERROR(VLOOKUP(ROW(C5),'Виды работ'!$A$5:$E$25,COLUMN(E5),0),\"\")","v":""},{"$f":"IFERROR(VLOOKUP($B10,'Виды работ'!$B$6:$G$20,COLUMN(C5),0),\"\")","v":""},{"$f":"IFERROR(VLOOKUP($B10,'Виды работ'!$B$6:$G$20,COLUMN(D5),0),\"\")","v":""},""]
[{"$f":"IFERROR(VLOOKUP(ROW(A6),'Виды работ'!$A$5:$E$25,COLUMN(),0),\"\")","v":""},{"$f":"IFERROR(VLOOKUP(ROW(B6),'Виды работ'!$A$5:$E$25,COLUMN(),0),\"\")","v":""},{"$f":"IFERROR(VLOOKUP(ROW(C6),'Виды работ'!$A$5:$E$25,COLUMN(E6),0),\"\")","v":""},{"$f":"IFERROR(VLOOKUP($B11,'Виды работ'!$B$6:$G$20,COLUMN(C6),0),\"\")","v":""},{"$f":"IFERROR(VLOOKUP($B11,'Виды работ'!$B$6:$G$20,COLUMN(D6),0),\"\")","v":""},""]
[{"$f":"IFERROR(VLOOKUP(ROW(A7),'Виды работ'!$A$5:$E$25,COLUMN(),0),\"\")","v":""},{"$f":"IFERROR(VLOOKUP(ROW(B7),'Виды работ'!$A$5:$E$25,COLUMN(),0),\"\")","v":""},{"$f":"IFERROR(VLOOKUP(ROW(C7),'Виды работ'!$A$5:$E$25,COLUMN(E7),0),\"\")","v":""},{"$f":"IFERROR(VLOOKUP($B12,'Виды работ'!$B$6:$G$20,COLUMN(C7),0),\"\")","v":""},{"$f":"IFERROR(VLOOKUP($B12,'Виды работ'!$B$6:$G$20,COLUMN(D7),0),\"\")","v":""},""]
[{"$f":"IFERROR(VLOOKUP(ROW(A8),'Виды работ'!$A$5:$E$25,COLUMN(),0),\"\")","v":""},{"$f":"IFERROR(VLOOKUP(ROW(B8),'Виды работ'!$A$5:$E$25,COLUMN(),0),\"\")","v":""},{"$f":"IFERROR(VLOOKUP(ROW(C8),'Виды работ'!$A$5:$E$25,COLUMN(E8),0),\"\")","v":""},{"$f":"IFERROR(VLOOKUP($B13,'Виды работ'!$B$6:$G$20,COLUMN(C8),0),\"\")","v":""},{"$f":"IFERROR(VLOOKUP($B13,'Виды работ'!$B$6:$G$20,COLUMN(D8),0),\"\")","v":""},""]
[{"$f":"IFERROR(VLOOKUP(ROW(A9),'Виды работ'!$A$5:$E$25,COLUMN(),0),\"\")","v":""},{"$f":"IFERROR(VLOOKUP(ROW(B9),'Виды работ'!$A$5:$E$25,COLUMN(),0),\"\")","v":""},{"$f":"IFERROR(VLOOKUP(ROW(C9),'Виды работ'!$A$5:$E$25,COLUMN(E9),0),\"\")","v":""},{"$f":"IFERROR(VLOOKUP($B14,'Виды работ'!$B$6:$G$20,COLUMN(C9),0),\"\")","v":""},{"$f":"IFERROR(VLOOKUP($B14,'Виды работ'!$B$6:$G$20,COLUMN(D9),0),\"\")","v":""},""]
[{"$f":"IFERROR(VLOOKUP(ROW(A10),'Виды работ'!$A$5:$E$25,COLUMN(),0),\"\")","v":""},{"$f":"IFERROR(VLOOKUP(ROW(B10),'Виды работ'!$A$5:$E$25,COLUMN(),0),\"\")","v":""},{"$f":"IFERROR(VLOOKUP(ROW(C10),'Виды работ'!$A$5:$E$25,COLUMN(E10),0),\"\")","v":""},{"$f":"IFERROR(VLOOKUP($B15,'Виды работ'!$B$6:$G$20,COLUMN(C10),0),\"\")","v":""},{"$f":"IFERROR(VLOOKUP($B15,'Виды работ'!$B$6:$G$20,COLUMN(D10),0),\"\")","v":""},""]
[{"$f":"IFERROR(VLOOKUP(ROW(A11),'Виды работ'!$A$5:$E$25,COLUMN(),0),\"\")","v":""},{"$f":"IFERROR(VLOOKUP(ROW(B11),'Виды работ'!$A$5:$E$25,COLUMN(),0),\"\")","v":""},{"$f":"IFERROR(VLOOKUP(ROW(C11),'Виды работ'!$A$5:$E$25,COLUMN(E11),0),\"\")","v":""},{"$f":"IFERROR(VLOOKUP($B16,'Виды работ'!$B$6:$G$20,COLUMN(C11),0),\"\")","v":""},{"$f":"IFERROR(VLOOKUP($B16,'Виды работ'!$B$6:$G$20,COLUMN(D11),0),\"\")","v":""},""]
[{"$f":"IFERROR(VLOOKUP(ROW(A12),'Виды работ'!$A$5:$E$25,COLUMN(),0),\"\")","v":""},{"$f":"IFERROR(VLOOKUP(ROW(B12),'Виды работ'!$A$5:$E$25,COLUMN(),0),\"\")","v":""},{"$f":"IFERROR(VLOOKUP(ROW(C12),'Виды работ'!$A$5:$E$25,COLUMN(E12),0),\"\")","v":""},{"$f":"IFERROR(VLOOKUP($B17,'Виды работ'!$B$6:$G$20,COLUMN(C12),0),\"\")","v":""},{"$f":"IFERROR(VLOOKUP($B17,'Виды работ'!$B$6:$G$20,COLUMN(D12),0),\"\")","v":""},""]
[{"$f":"IFERROR(VLOOKUP(ROW(A13),'Виды работ'!$A$5:$E$25,COLUMN(),0),\"\")","v":""},{"$f":"IFERROR(VLOOKUP(ROW(B13),'Виды работ'!$A$5:$E$25,COLUMN(),0),\"\")","v":""},{"$f":"IFERROR(VLOOKUP(ROW(C13),'Виды работ'!$A$5:$E$25,COLUMN(E13),0),\"\")","v":""},{"$f":"IFERROR(VLOOKUP($B18,'Виды работ'!$B$6:$G$20,COLUMN(C13),0),\"\")","v":""},{"$f":"IFERROR(VLOOKUP($B18,'Виды работ'!$B$6:$G$20,COLUMN(D13),0),\"\")","v":""},""]
[{"$f":"IFERROR(VLOOKUP(ROW(A14),'Виды работ'!$A$5:$E$25,COLUMN(),0),\"\")","v":""},{"$f":"IFERROR(VLOOKUP(ROW(B14),'Виды работ'!$A$5:$E$25,COLUMN(),0),\"\")","v":""},{"$f":"IFERROR(VLOOKUP(ROW(C14),'Виды работ'!$A$5:$E$25,COLUMN(E14),0),\"\")","v":""},{"$f":"IFERROR(VLOOKUP($B19,'Виды работ'!$B$6:$G$20,COLUMN(C14),0),\"\")","v":""},{"$f":"IFERROR(VLOOKUP($B19,'Виды работ'!$B$6:$G$20,COLUMN(D14),0),\"\")","v":""},""]
[{"$f":"IFERROR(VLOOKUP(ROW(A15),'Виды работ'!$A$5:$E$25,COLUMN(),0),\"\")","v":""},{"$f":"IFERROR(VLOOKUP(ROW(B15),'Виды работ'!$A$5:$E$25,COLUMN(),0),\"\")","v":""},{"$f":"IFERROR(VLOOKUP(ROW(C15),'Виды работ'!$A$5:$E$25,COLUMN(E15),0),\"\")","v":""},{"$f":"IFERROR(VLOOKUP($B20,'Виды работ'!$B$6:$G$20,COLUMN(C15),0),\"\")","v":""},{"$f":"IFERROR(VLOOKUP($B20,'Виды работ'!$B$6:$G$20,COLUMN(D15),0),\"\")","v":""},""]
[{"$f":"IFERROR(VLOOKUP(ROW(A16),'Виды работ'!$A$5:$E$25,COLUMN(),0),\"\")","v":""},{"$f":"IFERROR(VLOOKUP(ROW(B16),'Виды работ'!$A$5:$E$25,COLUMN(),0),\"\")","v":""},{"$f":"IFERROR(VLOOKUP(ROW(C16),'Виды работ'!$A$5:$E$25,COLUMN(E16),0),\"\")","v":""},{"$f":"IFERROR(VLOOKUP($B21,'Виды работ'!$B$6:$G$20,COLUMN(C16),0),\"\")","v":""},{"$f":"IFERROR(VLOOKUP($B21,'Виды работ'!$B$6:$G$20,COLUMN(D16),0),\"\")","v":""},""]
[{"$f":"IFERROR(VLOOKUP(ROW(A17),'Виды работ'!$A$5:$E$25,COLUMN(),0),\"\")","v":""},{"$f":"IFERROR(VLOOKUP(ROW(B17),'Виды работ'!$A$5:$E$25,COLUMN(),0),\"\")","v":""},{"$f":"IFERROR(VLOOKUP(ROW(C17),'Виды работ'!$A$5:$E$25,COLUMN(E17),0),\"\")","v":""},{"$f":"IFERROR(VLOOKUP($B22,'Виды работ'!$B$6:$G$20,COLUMN(C17),0),\"\")","v":""},{"$f":"IFERROR(VLOOKUP($B22,'Виды работ'!$B$6:$G$20,COLUMN(D17),0),\"\")","v":""},""]
[{"$f":"IFERROR(VLOOKUP(ROW(A18),'Виды работ'!$A$5:$E$25,COLUMN(),0),\"\")","v":""},{"$f":"IFERROR(VLOOKUP(ROW(B18),'Виды работ'!$A$5:$E$25,COLUMN(),0),\"\")","v":""},{"$f":"IFERROR(VLOOKUP(ROW(C18),'Виды работ'!$A$5:$E$25,COLUMN(E18),0),\"\")","v":""},{"$f":"IFERROR(VLOOKUP($B23,'Виды работ'!$B$6:$G$20,COLUMN(C18),0),\"\")","v":""},{"$f":"IFERROR(VLOOKUP($B23,'Виды работ'!$B$6:$G$20,COLUMN(D18),0),\"\")","v":""},""]
[{"$f":"IFERROR(VLOOKUP(ROW(A19),'Виды работ'!$A$5:$E$25,COLUMN(),0),\"\")","v":""},{"$f":"IFERROR(VLOOKUP(ROW(B19),'Виды работ'!$A$5:$E$25,COLUMN(),0),\"\")","v":""},{"$f":"IFERROR(VLOOKUP(ROW(C19),'Виды работ'!$A$5:$E$25,COLUMN(E19),0),\"\")","v":""},{"$f":"IFERROR(VLOOKUP($B24,'Виды работ'!$B$6:$G$20,COLUMN(C19),0),\"\")","v":""},{"$f":"IFERROR(VLOOKUP($B24,'Виды работ'!$B$6:$G$20,COLUMN(D19),0),\"\")","v":""},""]
[{"$f":"IFERROR(VLOOKUP(ROW(A20),'Виды работ'!$A$5:$E$25,COLUMN(),0),\"\")","v":""},{"$f":"IFERROR(VLOOKUP(ROW(B20),'Виды работ'!$A$5:$E$25,COLUMN(),0),\"\")","v":""},{"$f":"IFERROR(VLOOKUP(ROW(C20),'Виды работ'!$A$5:$E$25,COLUMN(E20),0),\"\")","v":""},{"$f":"IFERROR(VLOOKUP($B25,'Виды работ'!$B$6:$G$20,COLUMN(C20),0),\"\")","v":""},{"$f":"IFERROR(VLOOKUP($B25,'Виды работ'!$B$6:$G$20,COLUMN(D20),0),\"\")","v":""},""]
[{"$f":"IFERROR(VLOOKUP(ROW(A21),'Виды работ'!$A$5:$E$25,COLUMN(),0),\"\")","v":""},{"$f":"IFERROR(VLOOKUP(ROW(B21),'Виды работ'!$A$5:$E$25,COLUMN(),0),\"\")","v":""},{"$f":"IFERROR(VLOOKUP(ROW(C21),'Виды работ'!$A$5:$E$25,COLUMN(E21),0),\"\")","v":""},null,null,""]
[null,"Материалы \"Стены\"",null,null,null,0]
[null,null,null,null,null,0]
[null,null,null,null,null,0]
[null,null,null,null,null,0]
[null,null,null,null,null,0]
[null,null,null,null,null,0]
[null,null,null,null,null,0]
[null,null,null,null,null,0]
[null,null,null,null,null,0]
[null,null,null,null,null,0]
[null,null,null,null,null,0]
[null,null,null,null,null,0]
[null,null,null,null,null,0]
[null,null,null,null,null,0]
[null,null,null,null,null,0]
[null,null,null,null,"Итого \"Материалы\"",""]
[null,"Потолки",null,null,null,0]
[null,null,null,null,null,0]
[null,null,null,null,null,0]
[null,null,null,null,null,0]
[null,null,null,null,null,0]
[null,null,null,null,null,0]
[null,null,null,null,null,0]
[null,null,null,null,null,0]
[null,null,null,null,null,0]
[null,null,null,null,null,0]
[null,null,null,null,null,0]
[null,null,null,null,null,0]
[null,null,null,null,null,0]
[null,null,null,null,null,0]
[null,null,null,null,null,0]
[null,null,null,null,null,0]
[null,null,null,null,null,0]
[null,null,null,null,null,0]
[null,null,null,null,null,0]
[null,"Материалы \"Потолки\"",null,null,null,0]
[null,null,null,null,null,0]
[null,null,null,null,null,0]
[null,null,null,null,null,0]
[null,null,null,null,null,0]
[null,null,null,null,null,0]
[null,null,null,null,null,0]
[null,null,null,null,null,{"$f":"IFERROR(C69*E69,\"\")","v":0}]
[null,null,null,null,null,0]
[null,null,null,null,null,0]
[null,null,null,null,null,0]
[null,null,null,null,null,0]
[null,null,null,null,null,0]
[null,null,null,null,null,0]
[null,null,null,null,null,0]
[null,null,null,null,null,0]
[null,null,null,null,null,0]
[null,null,null,null,null,0]
[null,null,null,null,"Итого \"Материалы\"",""]
[null,"Полы",null,null,null,0]
[null,null,null,null,null,0]
[null,null,null,null,null,0]
[null,null,null,null,null,0]
[null,null,null,null,null,0]
[null,null,null,null,null,0]
[null,null,null,null,null,0]
[null,null,null,null,null,0]
[null,null,null,null,null,0]
[null,null,null,null,null,0]
[null,null,null,null,null,0]
[null,null,null,null,null,0]
[null,"Материалы \"Полы\"",null,null,null,0]
[null,null,null,null,null,0]
[null,null,null,null,null,0]
[null,null,null,null,null,0]
[null,null,null,null,null,0]
[null,null,null,null,null,0]
[null,null,null,null,null,0]
[null,null,null,null,null,0]
[null,null,null,null,null,0]
[null,null,null,null,null,0]
[null,null,null,null,null,0]
[null,null,null,null,"Итого \"Материалы\"",""]
[null,"Облицовочные работы",null,null,null,0]
[null,null,null,null,null,0]
[null,null,null,null,null,0]
[null,null,null,null,null,0]
[null,null,null,null,null,0]
[null,null,null,null,null,0]
[null,"Материалы",null,null,null,0]
[null,null,null,null,null,0]
[null,null,null,null,null,0]
[null,null,null,null,null,0]
[null,null,null,null,"Итого \"Материалы\"",""]
[null,"Плотницкие  работы",null,null,null,0]
[null,null,null,null,null,0]
[null,null,null,null,null,0]
[null,null,null,null,null,0]
[null,null,null,null,null,0]
[null,null,null,null,null,0]
[null,null,null,null,null,0]
[null,null,null,null,null,0]
[null,null,null,null,null,0]
[null,"Материалы",null,null,null,0]
[null,null,null,null,null,0]
[null,null,null,null,null,0]
[null,null,null,null,null,0]
[null,null,null,null,null,0]
[null,null,null,null,"Итого \"Материалы\"",""]
[null,"Сантехнические работы  ",null,null,null,0]
[null,null,null,null,null,0]
[null,null,null,null,null,{"$f":"IFERROR(C133*E133,\"\")","v":0}]
[null,null,null,null,null,0]
[null,null,null,null,null,0]
[null,null,null,null,null,0]
[null,null,null,null,null,0]
[null,null,null,null,null,0]
[null,null,null,null,null,0]
[null,null,null,null,null,0]
[null,null,null,null,null,0]
[null,null,null,null,null,0]
[null,null,null,null,null,0]
[null,null,null,null,null,0]
[null,null,null,null,null,0]
[null,null,null,null,null,0]
[null,null,null,null,null,0]
[null,null,null,null,null,0]
[null,null,null,null,null,0]
[null,null,null,null,null,0]
[null,null,null,null,null,0]
[null,null,null,null,null,0]
[null,"Материалы",null,null,null,0]
[null,null,null,null,null,0]
[null,null,null,null,null,0]
[null,null,null,null,null,0]
[null,null,null,null,null,0]
[null,null,null,null,null,0]
[null,null,null,null,null,0]
[null,null,null,null,null,0]
[null,null,null,null,null,0]
[null,null,null,null,null,0]
[null,null,null,null,null,0]
[null,null,null,null,"Итого \"Материалы\"",""]
[null,"Работы по балкону ",null,null,null,0]
[null,null,null,null,null,0]
[null,null,null,null,null,0]
[null,null,null,null,null,0]
[null,null,null,null,null,0]
[null,null,null,null,null,0]
[null,null,null,null,null,0]
[null,null,null,null,null,0]
[null,null,null,null,null,0]
[null,null,null,null,null,0]
[null,"Материалы",null,null,null,0]
[null,null,null,null,null,0]
[null,null,null,null,null,0]
[null,null,null,null,null,0]
[null,null,null,null,null,0]
[null,null,null,null,null,0]
[null,null,null,null,null,0]
[null,null,null,null,null,0]
[null,null,null,"Итого \"Материалы\"",null,0]
[null,"Откосы (малярные работы)",null,null,null,0]
[null,null,null,null,null,0]
[null,null,null,null,null,0]
[null,null,null,null,null,0]
[null,null,null,null,null,0]
[null,null,null,null,null,0]
[null,null,null,null,null,0]
[null,null,null,null,null,0]
[null,null,null,null,null,0]
[null,null,null,null,null,0]
[null,null,null,null,null,0]
[null,"Материалы",null,null,null,0]
[null,null,null,null,null,0]
[null,null,null,null,null,{"$f":"IFERROR(C197*E197,\"\")","v":0}]
[null,null,null,null,null,0]
[null,null,null,null,null,0]
[null,null,null,null,null,0]
[null,null,null,null,null,0]
[null,null,null,null,null,0]
[null,null,null,null,null,0]
[null,null,null,null,null,0]
[null,null,null,null,null,0]
[null,null,null,"Итого \"Материалы\"",null,0]
[null,"Электромонтажные работы",null,null,null,0]
[null,null,null,null,null,0]
[null,null,null,null,null,0]
[null,null,null,null,null,0]
[null,null,null,null,null,0]
[null,null,null,null,null,0]
[null,null,null,null,null,0]
[null,null,null,null,null,0]
[null,null,null,null,null,0]
[null,null,null,null,null,0]
[null,null,null,null,null,0]
[null,null,null,null,null,0]
[null,null,null,null,null,0]
[null,null,null,null,null,0]
[null,null,null,null,null,0]
[null,null,null,null,null,0]
[null,null,null,null,null,0]
[null,null,null,null,null,0]
[null,null,null,null,null,0]
[null,null,null,null,null,0]
[null,"Материалы ",null,null,null,0]
[null,null,null,null,null,0]
[null,null,null,null,null,0]
[null,null,null,null,null,0]
[null,null,null,"Итого \"Материалы\"",null,0]